Cogmind - Beta 16.1 @@@ ROGUE MODE // 2026.04.07 @ 21:08:31 Player: zacyquack Result: Destroyed by as-77183 with Assembled Rifle Performance ------------- Evolutions (0) 0 Regions Visited (2) 400 Robots Destroyed (13) 65 Value Destroyed (255) 255 Prototype IDs (2) 40 Alien Tech Used (0) 0 Bonus (0) 0 TOTAL SCORE: 760 Bonus ------- None Cogmind --------- Core Integrity 0/250 Matter 280/300 Energy 93/100 System Corruption 0% Temperature Cool (0) Movement Flying (197) Ox2 Location -10/Mines Parts ------- > --- POWER (1) -------- (None) > --- PROPULSION (2) --- Flight Unit Flight Unit > --- UTILITY (2) ------ Large Storage Unit Signal Interpreter > --- WEAPON (2) ------- (None) > --- INVENTORY (15) --- Light Ion Engine Heat Sink High-capacity Battery (250) Small Laser Grenade Launcher Datajack Peak State ------------ > --- POWER ------------ Ion Engine > --- PROPULSION ------- Wheel Wheel > --- UTILITY ---------- Large Storage Unit > --- WEAPON ----------- Medium Laser Assault Rifle > --- INVENTORY -------- Light Ion Engine Flight Unit Flight Unit Flight Unit Flight Unit Heat Sink High-capacity Battery Small Laser Grenade Launcher Datajack [Rating: 7] Favorites ----------- Power Ion Engine Engine Ion Engine Propulsion Wheel Wheel Wheel Flight Unit Flight Unit Utility Large Storage Unit Storage Large Storage Unit Processor Signal Interpreter Weapon Medium Laser Energy Gun Medium Laser Ballistic Gun Assault Rifle Build | -11 -10 -10 ------- Run | Yrd Mat Min Slots Evolved . | . . . Power . | . . . Propulsion . | . . . Utility . | . . . Weapon . | . . . Parts Attached 12 | 6 3 3 Power 2 | 2 . . Engine 2 | 2 . . Core . | . . . Reactor . | . . . Propulsion 6 | 2 2 2 Treads . | . . . Leg . | . . . Wheel 2 | 2 . . Hover . | . . . Flight 4 | . 2 2 Utility 2 | . 1 1 Device . | . . . Storage 1 | . 1 . Processor 1 | . . 1 Hackware . | . . . Protection . | . . . Artifact . | . . . Weapon 2 | 2 . . Energy Gun 1 | 1 . . Energy Cannon . | . . . Ballistic Gun 1 | 1 . . Ballistic Cannon . | . . . Launcher . | . . . Special Weapon . | . . . Impact Weapon . | . . . Slashing Weapon . | . . . Piercing Weapon . | . . . Special Melee Weapon . | . . . Unidentified Prototypes . | . . . Parts Lost 7 | . . 7 Power 1 | . . 1 Propulsion 4 | . . 4 Utility . | . . . Weapon 2 | . . 2 Highest Loss Streak 5 | . . 5 To Critical Strikes . | . . . Average Backups 8 | . 9 10 Power . | . 1 1 Propulsion 3 | . 3 3 Utility 1 | . 2 2 Weapon 1 | . 1 2 Tool/Special . | . . . Unused Backups 6 | . 1 5 Power . | . . . Propulsion 1 | . 1 . Utility 2 | . . 2 Weapon 2 | . . 2 Tool/Special 1 | . . 1 Average Slot Usage (%) 69 | . 69 69 Engine 13 | . 14 12 Wheel 12 | . 18 3 Storage 13 | . 13 14 Processor 4 | . . 10 Energy Gun 13 | . 14 12 Ballistic Gun 10 | . 9 12 Peak Build Rating 7 | 5 7 7 Average Rating 5 | 3 5 5 On Entrance 4 | . 5 7 Avg Prop Armor Cover (%) . | . . . Naked Turns . | . . . Heaviest Build 29 | 9 29 29 Greatest Support 20 | 20 20 20 Greatest Overweight (x) 9 | . 8 9 Average Overweight (x) 2 | . 1 7 Largest Inventory Capacity 15 | 5 15 15 Average Capacity 13 | 5 14 15 Most Carried 14 | 2 14 11 Average Carried 8 | . 9 9 Final Capacity 15 | 5 15 15 Final Carried 11 | 1 11 6 Class Distribution -------------------- 100% | Mutant Dominant Class ---------------- Mutant | -10/Materials Mutant | -10/Mines Resources | -11 -10 -10 ----------- Run | Yrd Mat Min Matter Collected 438 | 266 55 117 Remotely . | . . . Salvage Created 425 | 48 250 127 Parts 28 | 2 23 3 Haulers Intercepted . | . . . Recyclers Shooed . | . . . Parts Field Recycled . | . . . Retrieved Matter . | . . . Parts Self-Destructed . | . . . Prevented . | . . . Parts Restored . | . . . Kills | -11 -10 -10 ------- Run | Yrd Mat Min Combat Hostiles Destroyed 11 | 1 8 2 Guns 11 | 1 8 2 Classes Destroyed 3 | 1 2 . Recycler 2 | . 1 1 Swarmer 6 | . 6 . Grunt 5 | 1 2 2 Best Kill Streak 3 | 1 3 3 Combat Bots Only 3 | 1 3 2 Max Kills in Single Turn 1 | 1 1 1 Gunslinging . | . . . Exploded . | . . . Melee . | . . . Uniques/NPCs Destroyed . | . . . Combat | -11 -10 -10 -------- Run | Yrd Mat Min Hostile Shots Fired 57 | 2 28 27 Missed 19 | 1 10 8 Hits 38 | 1 18 19 Projectile 38 | 1 18 19 AOE 9 | . . 9 Critical Strikes 1 | . . 1 Damage Taken 623 | 10 153 460 Core 258 | . 53 205 Absorbed by Shields . | . . . Core Remaining (%) 100 | 100 . . Volleys Fired 32 | 2 15 15 Largest 2 | 2 2 2 Hottest 70 | 70 70 70 Shots Fired 63 | 4 30 29 Gun 63 | 4 30 29 Cannon . | . . . Launcher . | . . . Special . | . . . Kinetic 31 | 2 15 14 Thermal 32 | 2 15 15 Explosive . | . . . Electromagnetic . | . . . Robot Hit Streak 9 | 2 5 9 Robot Miss Streak 4 | 1 4 1 Penetration Max . | . . . Secondary Targets 3 | . 3 . Max Gunslinging Chain 1 | . 1 . Shots Hit Robots 39 | 2 16 21 Core Hits 23 | 2 12 9 Critical Kills . | . . . Critical Parts Destroyed . | . . . Critical Strikes 3 | . . 3 Burn 3 | . . 3 Melee Attacks . | . . . Impact . | . . . Slashing . | . . . Piercing . | . . . Sneak Attacks . | . . . Combat Hostiles . | . . . Follow-up Attacks . | . . . Damage Inflicted 500 | 25 210 265 Guns 500 | 25 210 265 Cannons . | . . . Explosions . | . . . Melee . | . . . Ramming . | . . . Kinetic 226 | 12 86 128 Thermal 274 | 13 124 137 Explosive . | . . . Electromagnetic . | . . . Impact . | . . . Slashing . | . . . Piercing . | . . . Highest Corruption . | . . . Average Corruption . | . . . Corruption Purged . | . . . Corruption Blocked . | . . . Overload Shots . | . . . Overflow Damage . | . . . Projectiles . | . . . Explosions . | . . . Melee . | . . . Knockbacks . | . . . Impact . | . . . Kinetic . | . . . Secondary . | . . . Self-Inflicted Damage . | . . . Shots . | . . . Rammed . | . . . Targets Rammed . | . . . Kicked . | . . . Crushed . | . . . Highest Temperature 199 | 24 36 199 Average Temperature 60 | 13 15 109 Received Heat Transfer 126 | 6 18 102 Siege Activations . | . . . Martial Activations . | . . . Shielding Activations . | . . . Robots Disrupted . | . . . Combat Hostiles . | . . . Robots Corrupted . | . . . Combat Hostiles . | . . . Parts Fried . | . . . Impact Corruptions . | . . . Robots Melted . | . . . Combat Hostiles . | . . . Parts Melted 1 | . . 1 Heat Transferred 1036 | 37 370 629 Parts Sabotaged . | . . . Parts Stolen . | . . . Parts Stripped . | . . . Power Chain Reactions . | . . . Alert | -11 -10 -10 ------- Run | Yrd Mat Min Maximum Alert Level . | . . . Low Security (%) 100 | 100 100 100 Level 1 . | . . . Level 2 . | . . . Level 3 . | . . . Level 4 . | . . . Level 5 . | . . . High Security . | . . . Max Security . | . . . Peak Influence 122 | 20 122 35 Initial 8 | . 6 8 Average 35 | 1 57 7 Influence Increases 267 | 20 192 55 Destroy 0b10 Robot/C 220 | 20 160 40 Destroy 0b10 Robot/NC 10 | . 5 5 Destroy Leader 30 | . 20 10 Successful Hack 7 | . 7 . Influence Decreases 267 | 10 180 77 Entered New Map 18 | . 4 14 Time Decay 231 | 10 176 45 Lost Part 18 | . . 18 Squads Dispatched . | . . . Investigation . | . . . Extermination . | . . . Reinforcement . | . . . Assault . | . . . Garrison . | . . . Intercept . | . . . Searches Triggered . | . . . Construction Impeded . | . . . Haulers Reinforced . | . . . Active Scanning Responses . | . . . Cargo Convoy Interrupts . | . . . Stealth | -11 -10 -10 --------- Run | Yrd Mat Min Distress Signals . | . . . Communications Jammed . | . . . Distress Signals . | . . . Times Spotted 33 | 1 9 23 Peak Tracking Total 20 | 1 4 20 Tactical Retreats 1 | . . 1 Traps | -11 -10 -10 ------- Run | Yrd Mat Min Traps Triggered 1 | . 1 . Indirectly . | . . . Trap Hack Attempts . | . . . Triggered . | . . . Disarmed . | . . . Reprogrammed . | . . . Reused . | . . . Traps Extracted . | . . . Installed . | . . . Triggered . | . . . Machines | -11 -10 -10 ---------- Run | Yrd Mat Min Machines Disabled . | . . . Max in Single Turn . | . . . Machines Repaired . | . . . Machines Dismantled . | . . . Machines Sabotaged . | . . . Overloaded Fab Kills . | . . . Hacking | -11 -10 -10 --------- Run | Yrd Mat Min Machines Accessed 3 | . 3 . Terminals 2 | . 2 . Fabricators . | . . . Repair Stations . | . . . Recycling Units 1 | . 1 . Scanalyzers . | . . . Garrison Access . | . . . Total Hacks 5 | . 5 . Successful 4 | . 4 . Failed 1 | . 1 . Catastrophic . | . . . Database Lockouts . | . . . Manual . | . . . Terminals 4 | . 4 . Fabricators . | . . . Repair Stations . | . . . Recycling Units 1 | . 1 . Scanalyzers . | . . . Garrison Access . | . . . Terminal Hacks 3 | . 3 . Prototype ID Bank 1 | . 1 . Branch Access Points 1 | . 1 . Hauler Manifests 1 | . 1 . Fabricator Hacks . | . . . Repair Station Hacks . | . . . Recycling Unit Hacks 1 | . 1 . Report Inventory 1 | . 1 . Scanalyzer . | . . . Garrison Access Hacks . | . . . Unauthorized Hacks . | . . . Terminals . | . . . Fabricators . | . . . Repair Stations . | . . . Recycling Units . | . . . Scanalyzers . | . . . Garrison Access . | . . . Data Cores Recovered . | . . . Used . | . . . Hacking Detections 2 | . 2 . Full Trace Events . | . . . Feedback Events . | . . . Feedback Blocked . | . . . Robot Schematics Acquired . | . . . Robots Built . | . . . Authchips . | . . . Time . | . . . Total Robot Build Rating . | . . . Part Schematics Acquired . | . . . Parts Built . | . . . Authchips . | . . . Time . | . . . Total Part Build Rating . | . . . Part Studies Acquired . | . . . Parts Repaired . | . . . Time . | . . . Parts Recycled . | . . . Recycled Matter . | . . . Retrieved Matter . | . . . Retrieved Components . | . . . Parts Scanalyzed . | . . . Part Schematics Acquired . | . . . Parts Damaged . | . . . Bothacking | -11 -10 -10 ------------ Run | Yrd Mat Min Used RIF Installer . | . . . Robots Hacked . | . . . Non-combat . | . . . Combat . | . . . Robot Hacks Applied . | . . . Relay Couplers Released . | . . . Fabnet Peak Effective % . | . . . Robots Rewired . | . . . Allies Hacked . | . . . Hacks Repelled . | . . . Allies | -11 -10 -10 -------- Run | Yrd Mat Min Total Allies . | . . . Largest Group . | . . . Highest-Rated Group . | . . . Highest-Rated Ally . | . . . Total Orders . | . . . Ally Attacks . | . . . Total Damage . | . . . Kills . | . . . Allies Corrupted . | . . . Allies Melted . | . . . Intel | -11 -10 -10 ------- Run | Yrd Mat Min Active Infowar (turns) . | . . . Robot Analysis Total . | . . . Derelict Logs Recovered . | . . . Drone Launches . | . . . Drone Recoveries . | . . . Exploration | -11 -10 -10 ------------- Run | Yrd Mat Min Turns Passed 679 | 68 382 229 Spaces Moved 336 | 69 226 41 Core 78 | 18 28 32 Treads . | . . . Legs . | . . . Wheels 251 | 51 198 2 Hover . | . . . Flight 7 | . . 7 Fastest Speed 50 | 50 80 95 Average Speed 160 | 72 137 436 Slowest Speed 500 | 80 450 500 Overloaded Moves . | . . . Propulsion Burnouts . | . . . Robots Hopped . | . . . Potential Cave-ins . | . . . Cave-ins Triggered . | . . . Exploration Rate (%) 21 | 6 40 18 Regions Visited 2 Branch Regions 1 Pre-discovered Areas . | . . . Known Exits Taken 1 | . 1 . Unknown Exits Taken 1 | 1 . . Scrap Searched 1 | . . 1 Spaces Dug . | . . . Terrain Destroyed . | . . . Melee . | . . . Projectile . | . . . AOE . | . . . Terrain Rammed . | . . . Walls Destroyed . | . . . Machines Disabled . | . . . Actions | -11 -10 -10 --------- Run | Yrd Mat Min Total 408 | 82 264 62 Wait 1 | . . 1 Move 334 | 68 225 41 Hop . | . . . Pick Up 21 | 6 15 . Fast Attach . | . . . Attach 14 | 5 4 5 Detach . | . . . Swap 5 | 1 4 . Drop 1 | . 1 . Fire 32 | 2 15 15 Melee . | . . . Ram . | . . . Kick . | . . . Crush . | . . . Escape Stasis . | . . . Rewire . | . . . Trap . | . . . Miscellaneous . | . . . Route ------- -11/Scrapyard -10/Materials (discovered 3 exits: [*Mat] / *Min x2) -10/Mines History --------- Turn | Location | Event 2 | -11/Scrapyard | Met Revision 17 52 | -11/Scrapyard | Discovered new exit (range 8) 69 | -11/Scrapyard | Entered Materials 195 | -10/Materials | Discovered new exit (range 12) 255 | -10/Materials | Identified exit to Mines 300 | -10/Materials | Discovered new exit (range 6) 316 | -10/Materials | Build established: Mutant 451 | -10/Materials | Entered Mines 504 | -10/Mines | Received a Rocket Launcher from a helpful Derelict 644 | -10/Mines | Assembled infested the area 649 | -10/Mines | Assisted by a Guerilla fighting off Assembled 663 | -10/Mines | Core integrity fell below 50% 669 | -10/Mines | Core integrity fell below 20% 680 | -10/Mines | Destroyed by as-77183 with Assembled Rifle Last Messages --------------- [Achievement: Hunted] 00661_ Flight Unit destroyed. 00661_ Ion Engine destroyed. 00662_ Assault Rifle destroyed. 00664_ D-53 Grenadier suffers critical hit (Burn). 00665_ Med. Laser destroyed. 00666_ as-78492 destroyed. 00666_ as-96513 destroyed. 00668_ Flight Unit destroyed. 00669_ The unstable cave ceiling collapses. 00670_ as-17701 suffers critical hit (Destroy). 00670_ as-17701 destroyed. 00671_ as-58046 destroyed. 00671_ as-48946 destroyed. 00673_ as-64348 destroyed. 00673_ D-53 Grenadier destroyed. 00673_ D-53 Grenadier suffers critical hit (Destroy). 00673_ D-53 Grenadier destroyed. Map ----- +----------------------------------------------------+ | ???????? % #?????????????????????????????????????? | | ????????? #?????????????????????????????????????? | | ????????? ##????????????????????????????????????? | | ?????????#% ##???????????????????????????????????? | | ?????????# ###????????#????????????????????????? | | ????????## ##???? #??????????????????????? | | ???????## ### #?????????????????????? | | ??????## ] ??????????????????????? | | ?????## ## ??????????????????????? | | ?????# #??? ???????????????????????? | | ?????# ##????? ?????????????????????????? | | ?????## #?????????????????????????????????? | | ??????## ########??????????????????????????? | | ???????### #??????????????????????????? | | ?????????## ##### #??????????????????????????? | | ??????????# #???# ####### #??????????????????? | | ??????????# #???# #??????????????????? | | ??????????# #???#t #??????????????????? | | ??????????## ##???##t ######??????????????????? | | ???????????##### ### ##??????????????????????? | | ??????????????# #??????????????????????? | | ?????????????# ##?????????????????????? | | ????????????# ##### ##????????????????????? | | ????????????# ?????## ##???????????????????? | | ???????????# ???????# #???????????????????? | | ???????????#? ???????## @ ##??????????????????? | | ??????????? ????????# #??????????????????? | | ?????????? ?????##### ##?????????????????? | | ??????????? ?????## #?????????????????? | | ?????????????????# #?????????????????? | | ?????????????????# a #?????????????????? | | ?????????????????## # #?????????????????? | | ??????????????????#### #?????????????????? | | ???????????????????? a ##?????????????????? | | ???????????????????# % ?????????????????? | | ???????????????????# a #####????????????????? | | ??????????????????# #????????????????????? | | ??????????????????# a #????????????????????? | | ??????????????????## a! ##????????????????????? | | ???????????????????# %a ??????????????????????? | | ???????????????????# a??????????????????????? | | ???????????????????## %??????????????????????? | | ????????????????????# ??????????????????????? | | ???????????????????? ??????????????????????? | | ???????????????????? ?????????????????????????? | | ?????????????????????????????????????????????????? | | ?????????????????????????????????????????????????? | | ?????????????????????????????????????????????????? | | ?????????????????????????????????????????????????? | | ?????????????????????????????????????????????????? | +----------------------------------------------------+ Best States ------------- Heat Dissipation 25 Energy Generation 10 Energy Capacity 250 Matter Stores 300 Matter Capacity 300 Sight Range 16 Terrain Scan Density 10 Evasion (%) 50 Item Schematics ----------------- None Robot Schematics ------------------ None Fabricated ------------ Nothing Repaired ---------- Nothing Studied --------- None Alien Tech Used ----------------- None Achievements -------------- Hunted Shopping List Challenges ------------ None Game ------ Seed FissionStormSuperbattery Manual? 0 Play Time 00:11:11 Cumulative 2.3 hours Start 2026.04.07 @ 20:59:17 End 2026.04.07 @ 21:08:31 Sessions 1 Manual Loads 0 Difficulty Rogue Special Mode None Game No. 3 Rogue 3 Adventurer 0 Explorer 0 Win Type - Total 0 Types 0/0/0/0/0/0/0/0/0/0 Lore% 1 Gallery% 4 Achievement% 4 Wizard Run 0 Options --------- Layout 1 ASCII 0 Keyboard 0 Movement Mouse Keybinds 0 Fullscreen 1 Font 32/SmallcapsGlow Map View 50x35 Zoom Use 0% Tactical HUD 1 Map Filters NONE Filters NONE Steam 1 RUN: 4096b68e-da1e-42ca-9803-f55cf9410d87